bitfinex-derivatives/quotes_BTCF0:USTF0_20210404
["timestamp","ask_amount","ask_price","bid_price","bid_amount"]
[1617556763068,5.62068702,58092.0,58091.0,0.69092658]
[1617556764872,5.11566999,58092.0,58091.0,0.69092658]
[1617556767676,1.56596999,58092.0,58091.0,0.69092658]
[1617556767876,1.46038999,58092.0,58091.0,0.69092658]
[1617556768076,1.46038999,58092.0,58091.0,3.38252658]
[1617556768275,1.21780479,58092.0,58091.0,3.53793658]
[1617556768876,1.46039879,58092.0,58091.0,3.53793658]
[1617556771079,1.46039879,58092.0,58091.0,0.84633658]
[1617556771281,1.46039879,58092.0,58091.0,0.69092658]
[1617556773784,4.45929879,58092.0,58091.0,0.69092658]
[1617556774784,4.82319427,58092.0,58091.0,0.69092658]
[1617556778689,5.3281016,58092.0,58091.0,0.69092658]
[1617556779892,4.82319427,58092.0,58091.0,0.33064475]
[1617556782798,4.82319427,58092.0,58091.0,0.69010619]
[1617556783797,4.82319427,58092.0,58091.0,0.33064475]
[1617556786199,4.82319427,58092.0,58091.0,0.27]
[1617556786599,4.82319427,58092.0,58090.0,0.01]
[1617556786799,4.82319427,58092.0,58089.0,0.35943843]
[1617556786800,4.82319427,58092.0,58091.0,0.27]
[1617556787000,3.10615655,58092.0,58091.0,0.27]
[1617556787200,3.10615655,58092.0,58090.0,0.27]
[1617556787401,4.21630543,58092.0,58090.0,0.27]
[1617556787803,1.35274898,58091.0,58090.0,0.27]
[1617556788203,1.71664855,58091.0,58090.0,0.27]
[1617556791008,1.71664855,58091.0,58089.0,0.01]
[1617556791609,1.10997726,58090.0,58088.0,0.26]
[1617556792008,1.10997561,58089.0,58087.0,0.35954744]
[1617556792408,0.24260021,58089.0,58088.0,0.27]
[1617556792809,1.10998274,58089.0,58088.0,0.27]
[1617556793209,1.10998274,58089.0,58086.0,0.46699041]
[1617556793210,1.10998274,58089.0,58087.0,0.27]
[1617556793509,1.10998274,58089.0,58088.0,0.27]
[1617556793709,1.11099759,58091.0,58088.0,0.27]
[1617556793910,1.11099759,58091.0,58087.0,0.62974902]
[1617556794109,1.11099759,58091.0,58088.0,0.27]
[1617556794510,0.74671371,58089.0,58088.0,0.27]
[1617556796315,0.74671371,58089.0,58087.0,0.27]
[1617556796517,0.74671371,58089.0,58088.0,0.27]
[1617556796716,0.60649991,58091.0,58088.0,0.27]
[1617556796917,0.60649991,58091.0,58087.0,0.27]
[1617556797117,0.60649991,58091.0,58088.0,0.27]
[1617556797518,0.74666771,58089.0,58087.0,0.27]
[1617556797718,0.74666771,58089.0,58086.0,0.10725655]
[1617556797919,0.7466698,58088.0,58086.0,0.10725655]
[1617556798118,0.7466698,58088.0,58087.0,0.27]
[1617556798320,0.60649991,58091.0,58087.0,0.27]
[1617556798719,0.74666926,58088.0,58087.0,0.27]
[1617556799542,5.11306926,58088.0,58087.0,0.27]
[1617556800137,6.52034591,58088.0,58083.0,0.27]
[1617556800354,3.15394591,58088.0,58083.0,0.27]
[1617556800552,3.15394591,58088.0,58060.0,0.56114012]
[1617556800553,4.68560023,58084.0,58082.0,0.27]
[1617556800744,5.68560023,58084.0,58073.0,0.44108416]
[1617556801124,2.61528485,58083.0,58074.0,0.27]
[1617556801323,2.61528485,58083.0,58071.0,0.44121975]
[1617556801524,1.12471,58074.0,58072.0,0.01]
[1617556801724,1.0,58073.0,58072.0,0.01]
[1617556801928,1.0,58073.0,58057.0,0.10725655]
[1617556801929,0.30214382,58071.0,58066.0,0.70020105]
[1617556802124,1.0,58073.0,58072.0,0.27]
[1617556802524,1.0,58073.0,58071.0,0.02]
[1617556802724,0.30214595,58069.0,58067.0,0.25]
[1617556802924,0.30214595,58069.0,58065.0,0.44025223]
[1617556803125,0.30214595,58069.0,58068.0,0.25]
[1617556803527,0.4094025,58069.0,58065.0,0.44025223]
[1617556803726,0.4094025,58069.0,58068.0,0.27]
[1617556804126,0.10725655,58069.0,58066.0,0.01]
[1617556804327,0.10725655,58069.0,58064.0,0.44038504]
[1617556804527,0.4094113,58069.0,58068.0,0.27]
[1617556804728,0.4094113,58069.0,58065.0,0.01]
[1617556804927,0.4094113,58069.0,58064.0,0.44038504]
[1617556805127,0.4094113,58069.0,58068.0,0.26]
[1617556805328,0.4094113,58069.0,58065.0,0.71028199]
[1617556805628,0.4094113,58069.0,58068.0,0.27]
[1617556805629,0.10725655,58069.0,58068.0,0.27]
[1617556806029,0.10725655,58069.0,58066.0,0.44025829]
[1617556806030,0.10725655,58069.0,58066.0,0.71025829]
[1617556806228,0.10725655,58069.0,58068.0,0.01]
[1617556806629,0.10725655,58069.0,58066.0,0.44025829]
[1617556806828,0.10725655,58069.0,58068.0,0.27]
[1617556807229,0.10725655,58069.0,58067.0,0.27]
[1617556807429,0.10725655,58069.0,58068.0,0.27]
[1617556807828,0.10725655,58069.0,58067.0,0.27]
[1617556808029,0.10725655,58069.0,58066.0,0.44025829]
[1617556808229,0.10725655,58069.0,58068.0,0.27]
[1617556808429,0.10725655,58069.0,58067.0,0.27]
[1617556808632,0.10725655,58069.0,58066.0,0.44025829]
[1617556808829,0.10725655,58069.0,58068.0,0.27]
[1617556809029,0.10725655,58069.0,58067.0,0.82025538]
[1617556809230,0.10725655,58069.0,58068.0,0.44005393]
[1617556809429,0.10725655,58069.0,58068.0,0.71005393]
[1617556809629,0.10725655,58069.0,58068.0,0.81731048]
[1617556811031,0.10725655,58069.0,58068.0,4.39391048]
[1617556811733,0.10725655,58069.0,58068.0,4.48490612]
[1617556813036,0.10725655,58069.0,58068.0,3.95385655]
[1617556813437,0.10725655,58069.0,58068.0,3.8466]
[1617556814840,0.25404655,58069.0,58068.0,3.8466]
[1617556815142,0.2642124,58069.0,58068.0,3.8466]
[1617556816252,0.1174224,58069.0,58068.0,3.8466]
[1617556816844,0.10725655,58069.0,58068.0,3.8466]
[1617556817646,0.10725655,58069.0,58068.0,4.28812808]
[1617556819048,0.10725655,58069.0,58068.0,4.64931282]
[1617556822451,0.10725655,58069.0,58068.0,1.07271282]
[1617556823151,2.93295655,58069.0,58068.0,1.07271282]
[1617556830661,2.93295655,58069.0,58068.0,1.16370716]
[1617556833569,2.93295655,58069.0,58068.0,2.66370716]
[1617556835668,2.93295655,58069.0,58068.0,3.1664506]
[1617556837169,0.10725655,58069.0,58068.0,3.1664506]
[1617556838470,0.10725655,58069.0,58068.0,5.7957506]
[1617556839070,0.10725655,58069.0,58068.0,4.2957506]
[1617556839471,0.10725655,58069.0,58068.0,3.79300716]
[1617556842074,0.10725655,58069.0,58068.0,1.16370716]
[1617556842378,0.10725655,58069.0,58068.0,1.07271282]
[1617556842576,3.64435655,58069.0,58068.0,1.07271282]
[1617556842776,3.94691357,58069.0,58068.0,1.07271282]
[1617556848485,3.64435655,58069.0,58068.0,1.07271282]
[1617556848985,3.64435655,58069.0,58068.0,1.57637976]
[1617556850586,3.94741956,58069.0,58068.0,1.57637976]
[1617556852692,4.09846956,58069.0,58068.0,1.57637976]
[1617556852891,4.46171598,58069.0,58068.0,1.57637976]
[1617556856996,4.09846956,58069.0,58068.0,1.57637976]
[1617556857496,3.94741956,58069.0,58068.0,1.57637976]
[1617556857997,4.11210956,58069.0,58068.0,1.57637976]
[1617556858499,4.47529595,58069.0,58068.0,1.57637976]
[1617556867208,4.11210956,58069.0,58068.0,1.57637976]
[1617556867709,4.47527677,58069.0,58068.0,1.57637976]
[1617556873413,0.93817677,58069.0,58068.0,1.57637976]
[1617556874212,0.83092022,58069.0,58068.0,4.73927976]
[1617556874613,0.93817677,58069.0,58068.0,4.84653631]
[1617556874914,0.93817677,58069.0,58068.0,4.93753313]
[1617556875314,1.18083466,58069.0,58068.0,4.93753313]
[1617556877621,1.01614466,58069.0,58068.0,4.93753313]
[1617556878924,0.41031956,58069.0,58068.0,4.93753313]
[1617556880424,0.41031956,58069.0,58068.0,5.13753313]
[1617556884332,0.30306301,58069.0,58068.0,5.13753313]
[1617556884533,0.30306301,58069.0,58068.0,6.63753313]
[1617556884756,0.30306301,58069.0,58068.0,7.63753313]
[1617556885137,0.3030969,58073.0,58068.0,8.34463347]
[1617556885435,0.30308492,58074.0,58072.0,1.31272]
[1617556885633,0.30308492,58074.0,58073.0,1.7]
[1617556885833,0.56567099,58096.0,58073.0,1.7]
[1617556885834,0.30307951,58075.0,58073.0,2.97]
[1617556886033,0.30307951,58075.0,58073.0,5.6794]
[1617556886234,0.44446948,58083.0,58073.0,5.6794]
[1617556886235,0.30307271,58076.0,58073.0,6.14277135]
[1617556886636,0.30307271,58076.0,58075.0,1.80725655]
[1617556886834,0.30307271,58076.0,58075.0,2.80725655]
[1617556887034,0.30307271,58076.0,58075.0,3.07725655]
[1617556887236,0.30306913,58077.0,58075.0,4.38855295]
[1617556887636,0.30306833,58079.0,58077.0,1.7]
[1617556888036,0.30306833,58079.0,58078.0,1.5809858]
[1617556888235,0.30306833,58079.0,58078.0,4.2809858]
[1617556888437,0.30306833,58079.0,58078.0,4.43260045]
[1617556888637,0.30306833,58079.0,58078.0,7.42910045]
[1617556888838,0.30305288,58082.0,58078.0,7.42910045]
[1617556889240,0.30305537,58084.0,58081.0,2.7]
[1617556889740,3.4838,58085.0,58083.0,1.39694313]
[1617556890141,3.4838,58085.0,58084.0,1.83337313]
[1617556890540,3.4838,58085.0,58084.0,3.02453627]
[1617556890739,3.4838,58085.0,58084.0,3.13179282]
[1617556890940,3.4838,58085.0,58084.0,3.39179282]
[1617556891741,3.4838,58085.0,58084.0,4.39179282]
[1617556891940,3.4838,58085.0,58084.0,3.39179282]
[1617556892341,3.4838,58085.0,58084.0,2.8881208]
[1617556892740,3.59105655,58085.0,58084.0,2.8881208]
[1617556897546,3.59105655,58085.0,58084.0,2.35391989]
[1617556898445,3.59105655,58085.0,58084.0,0.95697676]
[1617556899850,3.70975655,58085.0,58084.0,0.79054676]
[1617556900050,0.22595655,58085.0,58084.0,0.79054676]
[1617556900651,0.22595655,58085.0,58084.0,3.90274676]
[1617556900852,0.22595655,58085.0,58084.0,4.43598064]
[1617556901053,0.10725655,58085.0,58084.0,4.43598064]
[1617556901254,0.36264014,58089.0,58084.0,4.43598064]
[1617556901453,0.36263684,58090.0,58084.0,4.43598064]
[1617556901853,0.5640458,58109.0,58084.0,4.43598064]
[1617556901854,0.36263422,58091.0,58089.0,0.36123396]
[1617556902256,0.36263422,58091.0,58090.0,0.27]
[1617556902654,0.36240274,58092.0,58090.0,0.69156982]
[1617556902854,0.36240274,58092.0,58091.0,0.10725655]
[1617556903455,0.36240274,58092.0,58091.0,0.37725655]
[1617556903657,0.36240274,58092.0,58091.0,0.43790287]
[1617556904558,0.36239552,58093.0,58091.0,0.43790287]
[1617556904960,0.36239552,58093.0,58091.0,0.37725655]
[1617556905461,0.36239614,58092.0,58091.0,0.37725655]
[1617556906762,0.60494476,58093.0,58091.0,0.37725655]
[1617556908164,3.28525,58092.0,58091.0,0.37725655]
[1617556908364,3.89020213,58092.0,58091.0,0.37725655]
[1617556908963,3.89020213,58092.0,58091.0,0.27]
[1617556909365,3.89020213,58092.0,58088.0,0.27]
[1617556909565,3.89020213,58092.0,58086.0,0.37105962]
[1617556909766,3.89020213,58092.0,58087.0,0.26]
[1617556910169,0.68550514,58091.0,58087.0,0.26]
[1617556910569,0.36238977,58088.0,58086.0,0.27]
[1617556910870,0.10725655,58087.0,58086.0,0.27]
[1617556911269,0.71226048,58087.0,58086.0,0.27]
[1617556913675,0.10725655,58087.0,58086.0,0.27]
[1617556913975,0.46974853,58087.0,58086.0,0.631272]
[1617556914676,0.46974853,58087.0,58086.0,3.426072]
[1617556914877,0.71234982,58087.0,58086.0,3.426072]
[1617556915378,0.71234982,58087.0,58086.0,3.0648]
[1617556915779,0.71234982,58087.0,58086.0,0.27]
[1617556916780,3.42654982,58087.0,58086.0,0.27]
[1617556918983,3.42654982,58087.0,58086.0,0.6312222]
[1617556919283,3.06405784,58087.0,58086.0,0.6312222]
[1617556919685,2.82145655,58087.0,58086.0,0.7882822]
[1617556920085,3.1235476,58087.0,58086.0,0.7882822]
[1617556924893,3.1235476,58087.0,58086.0,0.6312222]
[1617556931203,3.48651465,58087.0,58086.0,1.07378716]
[1617556932505,3.48651465,58087.0,58086.0,0.6312222]
[1617556933005,3.48651465,58087.0,58086.0,1.07388878]
[1617556933606,0.77231465,58087.0,58086.0,1.07388878]
[1617556934006,0.77231465,58087.0,58086.0,3.65418878]
[1617556934808,0.65194484,58087.0,58086.0,3.74516275]
[1617556935209,0.30209105,58087.0,58086.0,3.74516275]
[1617556939816,0.30209105,58087.0,58086.0,5.24516275]
[1617556940016,0.30209105,58087.0,58086.0,6.24516275]
[1617556940216,0.10725655,58093.0,58086.0,6.24516275]
[1617556940217,0.30247594,58088.0,58086.0,6.24516275]
[1617556940616,0.30247594,58088.0,58086.0,5.24516275]
[1617556940818,0.30247594,58088.0,58087.0,2.45555796]
[1617556941016,0.30247594,58088.0,58087.0,3.45555796]
[1617556941220,0.30247594,58088.0,58087.0,3.72555796]
[1617556941617,0.66609754,58088.0,58087.0,4.22895241]
[1617556942218,4.25089754,58088.0,58087.0,4.22895241]
[1617556942417,3.88727594,58088.0,58087.0,4.22895241]
[1617556943118,4.12985311,58088.0,58087.0,4.22895241]
[1617556943618,4.49342408,58088.0,58087.0,3.22895241]
[1617556943819,4.49342408,58088.0,58087.0,4.22895241]
[1617556944418,4.12985311,58088.0,58087.0,4.22895241]
[1617556944819,3.88727594,58088.0,58087.0,4.22895241]
[1617556945821,3.88727594,58088.0,58087.0,3.22895241]
[1617556946022,3.88727594,58088.0,58087.0,4.22895241]
[1617556948323,3.88727594,58088.0,58087.0,3.22895241]
[1617556948725,3.88727594,58088.0,58087.0,4.22895241]
[1617556949825,3.88727594,58088.0,58087.0,3.22895241]
[1617556950027,3.88727594,58088.0,58087.0,4.22895241]
[1617556950226,3.88727594,58088.0,58087.0,3.22895241]
[1617556950627,3.88727594,58088.0,58087.0,3.42895241]
[1617556951630,3.88727594,58088.0,58087.0,3.22895241]
[1617556951829,3.88727594,58088.0,58087.0,4.22895241]
[1617556952728,4.25082298,58088.0,58087.0,4.22895241]
[1617556954028,3.88727594,58088.0,58087.0,4.22895241]
[1617556955131,3.88727594,58088.0,58087.0,3.22895241]
[1617556955331,3.88727594,58088.0,58087.0,4.22895241]
[1617556955730,3.88727594,58088.0,58087.0,3.22895241]
[1617556955931,3.88727594,58088.0,58087.0,4.22895241]
[1617556956932,3.88727594,58088.0,58087.0,3.22895241]
[1617556957332,4.04695594,58088.0,58087.0,3.22895241]
[1617556958254,4.04695594,58088.0,58087.0,1.72895241]
[1617556958850,4.4104896,58088.0,58087.0,1.22555796]
[1617556959234,4.85479658,58088.0,58087.0,1.13458745]
[1617556959671,4.85479658,58088.0,58087.0,0.6924202]
[1617556960735,1.26999658,58088.0,58087.0,0.6924202]
[1617556960935,2.26999658,58088.0,58087.0,0.6924202]
[1617556961336,2.7749019,58088.0,58087.0,0.6924202]
[1617556961736,2.7749019,58088.0,58087.0,0.330647]
[1617556962538,1.7749019,58088.0,58087.0,0.330647]
[1617556962939,1.7749019,58088.0,58087.0,3.959347]
[1617556963339,2.01752298,58088.0,58087.0,3.8987]
[1617556964341,1.35293766,58088.0,58087.0,3.8987]
[1617556965142,1.11031658,58088.0,58087.0,3.8987]
[1617556965545,1.11031658,58088.0,58087.0,0.27]
[1617556965944,1.11031658,58088.0,58087.0,0.3629692]
[1617556966347,1.11031658,58088.0,58087.0,0.01]
[1617556966949,1.11031658,58088.0,58087.0,0.37287406]
[1617556967157,1.25238658,58088.0,58087.0,0.37287406]
[1617556967351,1.25238658,58088.0,58086.0,0.36298049]
[1617556967749,1.25238658,58088.0,58087.0,0.27]
[1617556967949,4.33488658,58088.0,58087.0,0.27]
[1617556968151,3.22457,58088.0,58087.0,0.27]
[1617556968550,3.22457,58088.0,58084.0,0.36300414]
[1617556968751,4.69768759,58088.0,58083.0,0.36300506]
[1617556968950,4.69768759,58088.0,58085.0,0.26]
[1617556969452,1.10900043,58084.0,58083.0,0.36300506]
[1617556969852,1.10900043,58084.0,58083.0,0.63300506]
[1617556970253,1.10900043,58084.0,58083.0,0.27]
[1617556970653,1.10900043,58084.0,58082.0,0.36300729]
[1617556970953,1.10900043,58084.0,58083.0,0.27]
[1617556971154,0.10725655,58086.0,58083.0,0.63300335]
[1617556971555,1.10867417,58084.0,58083.0,0.36300335]
[1617556971955,1.10867417,58084.0,58083.0,0.37300335]
[1617556973355,1.10867417,58084.0,58083.0,0.4802599]
[1617556976959,1.10867417,58084.0,58083.0,0.11725655]
[1617556980485,1.10867417,58084.0,58083.0,0.48009807]
[1617556981063,0.66522465,58084.0,58083.0,0.48009807]
[1617556983268,0.90767691,58084.0,58083.0,0.48009807]
[1617556983671,0.66505934,58084.0,58083.0,0.48009807]
[1617556984071,0.9076773,58084.0,58083.0,0.48009807]
[1617556984674,0.66505934,58084.0,58083.0,0.48009807]
[1617556985075,0.90767702,58084.0,58083.0,0.48009807]
[1617556985475,0.66505934,58084.0,58083.0,0.48009807]
[1617556985878,0.90767765,58084.0,58083.0,0.48009807]
[1617556986077,0.24261831,58084.0,58083.0,0.48009807]
[1617556986478,0.90745009,58084.0,58083.0,0.48009807]
[1617556986878,0.66483178,58084.0,58083.0,0.48009807]
[1617556987280,0.9074519,58084.0,58083.0,0.48009807]
[1617556987681,0.66483178,58084.0,58083.0,0.48009807]
[1617556991088,0.66483178,58084.0,58083.0,0.01]
[1617556991491,0.90745539,58084.0,58080.0,0.36255618]
[1617556991690,0.90745539,58084.0,58083.0,0.27]
[1617556991890,3.3930465,58084.0,58083.0,0.27]
[1617556992090,3.3930465,58084.0,58081.0,0.26]
[1617556992291,4.6637828,58084.0,58081.0,0.26]
[1617556992491,1.7136828,58084.0,58083.0,0.27]
[1617556992691,0.6065815,58083.0,58082.0,0.27]
[1617556992892,0.7243215,58083.0,58082.0,0.27]
[1617556993093,3.6857,58080.0,58078.0,0.26]
[1617556993294,3.6857,58080.0,58075.0,0.36247471]
[1617556993493,0.10725655,58076.0,58075.0,0.36247471]
[1617556993693,0.10725655,58076.0,58070.0,0.55028119]
[1617556993694,0.10725655,58076.0,58074.0,0.36248262]
[1617556993894,0.10725655,58076.0,58075.0,0.26]
[1617556994292,0.10725655,58076.0,58074.0,0.36248262]
[1617556994494,0.7713641,58076.0,58075.0,0.33066046]
[1617556995497,1.01400419,58076.0,58075.0,0.69305011]
[1617556995895,0.7713641,58076.0,58075.0,0.33066046]
[1617556996194,1.0140053,58076.0,58075.0,0.69311368]
[1617556996696,1.0140053,58076.0,58075.0,0.33066046]
[1617556997598,1.0140053,58076.0,58075.0,0.69315201]
[1617556998000,0.65177396,58076.0,58075.0,0.69315201]
[1617556998397,0.40913276,58076.0,58075.0,0.69315201]
[1617556998901,0.77162737,58076.0,58075.0,0.69315201]
[1617556999701,1.01428113,58076.0,58075.0,0.69315201]
[1617557000103,0.77162737,58076.0,58075.0,0.69315201]
[1617557000506,1.01428248,58076.0,58075.0,0.69315201]
[1617557006811,0.65178787,58076.0,58075.0,0.69315201]
[1617557007013,1.0147113,58076.0,58075.0,0.69315201]
[1617557007714,0.34991166,58076.0,58075.0,0.69315201]
[1617557007915,1.01473163,58076.0,58075.0,0.69315201]
[1617557009115,0.10725655,58076.0,58075.0,0.69315201]
[1617557009315,0.77204568,58076.0,58075.0,0.69315201]
[1617557010016,1.01470347,58076.0,58075.0,0.69315201]
[1617557013424,1.45848614,58076.0,58075.0,1.1373751]
[1617557019936,1.45848614,58076.0,58075.0,0.69315201]
[1617557020135,1.58711614,58076.0,58075.0,0.69315201]
[1617557021240,1.58711614,58076.0,58075.0,1.13738659]
[1617557022037,1.45848614,58076.0,58075.0,1.13738659]
[1617557024242,1.45848614,58076.0,58075.0,0.69315201]
[1617557025441,1.45848614,58076.0,58075.0,1.13735232]
[1617557027043,1.45848614,58076.0,58075.0,0.69315201]
[1617557035056,1.96192152,58076.0,58075.0,1.13789059]
[1617557035456,1.45848614,58076.0,58075.0,1.07723013]
[1617557035856,1.45848614,58076.0,58075.0,1.13789644]
[1617557038557,1.45848614,58076.0,58075.0,1.30661644]
[1617557038757,1.01470347,58076.0,58075.0,1.30661644]
[1617557039157,1.01470347,58076.0,58075.0,4.22411644]
[1617557039361,1.01470347,58076.0,58075.0,4.72931178]
[1617557039759,0.90744692,58076.0,58075.0,4.82029849]
[1617557040160,0.66478913,58076.0,58075.0,4.82029849]
[1617557040559,0.90741848,58076.0,58075.0,4.82029849]
[1617557040760,0.90741848,58076.0,58075.0,5.02029849]
[1617557040959,0.66478913,58076.0,58075.0,5.02029849]
[1617557041560,0.66478913,58076.0,58075.0,6.52029849]
[1617557041761,0.66478913,58076.0,58075.0,7.52029849]
[1617557041964,0.30218603,58076.0,58075.0,7.52029849]
[1617557042361,0.36349789,58077.0,58075.0,7.52029849]
[1617557042362,0.30301013,58077.0,58075.0,7.66181967]
[1617557042761,0.5655314,58099.0,58075.0,7.66181967]
[1617557042762,0.30300124,58079.0,58076.0,2.60642024]
[1617557042961,0.30300124,58079.0,58077.0,1.5]
[1617557043161,0.4443547,58087.0,58079.0,2.5]
[1617557043162,0.30303659,58080.0,58079.0,2.5]
[1617557043561,0.30303659,58080.0,58079.0,2.82326025]
[1617557043762,0.30303659,58080.0,58079.0,3.9305168]
[1617557043962,0.30303659,58080.0,58079.0,4.08213865]
[1617557044363,0.30293207,58081.0,58079.0,4.08213865]
[1617557044763,0.30293207,58081.0,58079.0,3.08213865]
[1617557044963,0.30293207,58081.0,58080.0,1.46486163]
[1617557045162,0.30293207,58081.0,58080.0,3.96486163]
[1617557045363,0.30293207,58081.0,58080.0,4.23486163]
[1617557045763,0.30208019,58086.0,58085.0,2.4783]
[1617557046164,0.30206616,58087.0,58086.0,0.27]
[1617557046564,0.30206616,58087.0,58085.0,3.44590503]
[1617557046565,0.30206616,58087.0,58085.0,3.43590503]
[1617557046764,0.30206616,58087.0,58086.0,0.27]
[1617557046967,0.30206616,58087.0,58086.0,1.22759113]
[1617557047769,0.30206616,58087.0,58086.0,1.33484768]
[1617557048368,0.30204804,58089.0,58086.0,1.33484768]
[1617557048768,0.36243752,58091.0,58088.0,3.42076731]
[1617557048967,0.36243752,58091.0,58088.0,5.07158731]
[1617557049169,0.3624243,58092.0,58090.0,0.36268131]
[1617557049370,0.3624243,58092.0,58091.0,4.2326]
[1617557049571,0.3625083,58093.0,58091.0,5.30852518]
[1617557049772,0.3625083,58093.0,58092.0,0.10725655]
[1617557049970,0.2425872,58097.0,58092.0,0.10725655]
[1617557049971,0.36258489,58095.0,58092.0,1.06476952]
[1617557050171,0.36258489,58095.0,58092.0,3.83476952]
[1617557050371,0.36258489,58095.0,58094.0,1.0]
[1617557050572,0.36274638,58097.0,58095.0,1.5]
[1617557050972,0.3627362,58098.0,58096.0,1.8153728]
[1617557051373,0.3627262,58100.0,58099.0,1.0]
[1617557051572,0.44330964,58104.0,58100.0,1.1372738]
[1617557051873,0.44328853,58106.0,58103.0,0.10725655]
[1617557052073,0.30226875,58104.0,58103.0,0.10725655]
[1617557052472,0.30226875,58104.0,58103.0,0.37725655]
[1617557052673,0.30226875,58104.0,58103.0,1.37725655]
[1617557053373,0.30226875,58104.0,58103.0,0.37725655]
[1617557054377,0.30226875,58104.0,58103.0,0.81959451]
[1617557054778,0.30226875,58104.0,58103.0,0.37725655]
[1617557056780,0.30214317,58105.0,58103.0,5.11325465]
[1617557056979,0.30214317,58105.0,58103.0,6.11325465]
[1617557057181,0.30090673,58118.0,58103.0,4.67105655]
[1617557057581,0.30090375,58121.0,58111.0,1.0]
[1617557057780,0.30090375,58121.0,58117.0,1.0]
[1617557057980,0.30090375,58121.0,58120.0,3.78159655]
[1617557058380,0.30090375,58121.0,58120.0,4.04159655]
[1617557058581,0.30090148,58122.0,58120.0,4.04159655]
[1617557058981,0.30089366,58121.0,58120.0,4.04159655]
[1617557059381,0.30088966,58122.0,58120.0,4.04159655]
[1617557060084,0.30088966,58122.0,58121.0,1.0]
[1617557060584,0.30088966,58122.0,58121.0,1.27]
[1617557061386,0.30088966,58122.0,58121.0,0.27]
[1617557061985,0.30068788,58123.0,58121.0,0.27]
[1617557062586,0.30067274,58124.0,58121.0,0.27]
[1617557063185,0.30078535,58126.0,58121.0,0.27]
[1617557063586,0.30081239,58127.0,58121.0,0.27]
[1617557063787,0.44114473,58135.0,58121.0,0.27]
[1617557063987,0.30068114,58128.0,58121.0,0.27]
[1617557064185,0.10725655,58129.0,58121.0,0.27]
[1617557064386,0.40795366,58129.0,58121.0,0.27]
[1617557064586,0.10725655,58129.0,58121.0,0.27]
[1617557064787,0.30069987,58128.0,58121.0,0.27]
[1617557064988,0.10725655,58129.0,58121.0,0.27]
[1617557065186,0.3006966,58128.0,58121.0,0.27]
[1617557065487,0.10725655,58129.0,58121.0,0.27]
[1617557065688,0.30069485,58128.0,58121.0,0.27]
[1617557065987,0.10725655,58129.0,58127.0,0.10725655]
[1617557066188,0.30069443,58128.0,58127.0,0.10725655]
[1617557066388,0.10725655,58129.0,58128.0,0.27]
[1617557066589,0.10725655,58129.0,58128.0,3.1688]
[1617557066789,0.10725655,58129.0,58128.0,2.8988]
[1617557066990,0.40784635,58129.0,58128.0,3.1688]
[1617557067594,0.40784635,58129.0,58128.0,0.27]
[1617557067794,3.79384635,58129.0,58128.0,0.27]
[1617557068397,3.49325655,58129.0,58128.0,0.27]
[1617557069096,0.10725655,58129.0,58128.0,0.27]
[1617557079808,0.10725655,58129.0,58128.0,0.47]
[1617557081610,0.10725655,58129.0,58128.0,3.4313]
[1617557082410,0.10725655,58129.0,58128.0,3.2313]
[1617557084415,0.29952539,58144.0,58128.0,3.2313]
[1617557084616,0.29952348,58146.0,58128.0,3.2313]
[1617557084816,0.29952348,58146.0,58128.0,0.27]
[1617557085017,0.4875,58149.0,58145.0,2.8515]
[1617557085215,0.4875,58149.0,58145.0,2.97867]
[1617557085416,0.2994887,58150.0,58146.0,0.27]
[1617557085616,0.29947775,58155.0,58146.0,0.27]
[1617557086215,0.29947775,58155.0,58154.0,0.10725655]
[1617557086616,0.29947775,58155.0,58154.0,0.37725655]
[1617557086917,0.29962314,58156.0,58154.0,0.37725655]
[1617557088117,0.10725655,58155.0,58154.0,0.37725655]
[1617557089551,0.10725655,58155.0,58154.0,3.07175655]
[1617557089936,0.10725655,58155.0,58154.0,4.07175655]
[1617557090137,0.10725655,58161.0,58154.0,4.27175655]
[1617557090521,0.10725655,58161.0,58156.0,1.0]
[1617557090923,0.10725655,58161.0,58157.0,0.27]
[1617557091122,0.10725655,58161.0,58157.0,0.43395]
[1617557091721,0.10725655,58161.0,58160.0,3.3294]
[1617557092123,0.10725655,58161.0,58160.0,3.70665655]
[1617557096729,0.10725655,58161.0,58160.0,0.37725655]
[1617557096930,3.46935655,58161.0,58160.0,0.27]
[1617557097330,0.26315655,58161.0,58144.0,0.01]
[1617557097729,3.43895655,58161.0,58160.0,0.27]
[1617557097930,4.09901329,58161.0,58145.0,0.01]
[1617557098130,0.10725655,58146.0,58145.0,0.01]
[1617557098330,0.21305655,58146.0,58138.0,0.10725655]
[1617557098530,0.21305655,58146.0,58145.0,0.01]
[1617557098931,0.21305655,58146.0,58138.0,0.10725655]
[1617557099130,0.21305655,58146.0,58143.0,0.27]
[1617557099331,0.21305655,58146.0,58145.0,0.27]
[1617557099533,0.21305655,58146.0,58139.0,0.01]
[1617557099733,0.21305655,58146.0,58144.0,0.26]
[1617557099934,0.21305655,58146.0,58145.0,0.27]
[1617557100135,0.21305655,58146.0,58139.0,0.01]
[1617557100333,3.4025,58140.0,58138.0,0.10725655]
[1617557100733,3.4025,58140.0,58139.0,0.27]
[1617557102335,3.50975655,58140.0,58139.0,0.27]
[1617557103637,0.10725655,58140.0,58139.0,0.27]
[1617557104437,0.10725655,58140.0,58139.0,3.2983]
[1617557105038,0.10725655,58140.0,58139.0,4.2983]
[1617557105638,0.36013197,58160.0,58139.0,5.09702826]
[1617557105639,0.30109954,58152.0,58139.0,5.09702826]
[1617557106039,0.07,58162.0,58145.0,0.35940973]
[1617557106040,0.30110066,58153.0,58145.0,0.35940973]
[1617557106239,0.30110066,58153.0,58148.0,0.10725655]
[1617557106440,0.30110066,58153.0,58140.0,0.59077103]
[1617557106441,0.30110066,58153.0,58146.0,0.27]
[1617557106639,0.30109983,58151.0,58149.0,0.01]
[1617557107038,0.30109983,58151.0,58145.0,0.27]
[1617557107039,0.30110046,58150.0,58145.0,0.27]
[1617557107239,0.30110046,58150.0,58142.0,0.35968722]
[1617557107438,0.30110046,58150.0,58139.0,3.0283]
[1617557107439,0.30110046,58150.0,58146.0,0.27]
[1617557107839,0.44157086,58156.0,58143.0,0.27]
[1617557107840,0.30110656,58149.0,58143.0,0.27]
[1617557108039,0.30110656,58149.0,58147.0,0.01]
[1617557108239,0.10725655,58148.0,58147.0,0.01]
[1617557108439,0.10725655,58148.0,58146.0,0.10725655]
[1617557108639,0.10725655,58148.0,58147.0,0.01]
[1617557109841,0.10725655,58148.0,58147.0,0.148]
[1617557110843,0.10725655,58148.0,58147.0,3.751]